fUST/lending_fUST_20250105
["ID","MTS","AMOUNT","RATE_DAILY","PERIOD"]
[347664635,1736039450857,-500.0,0.00019178,2]
[347664636,1736039450867,-500.0,0.00019178,2]
[347664637,1736039450878,-1473.34,0.00019178,2]
[347664638,1736039450888,-500.0,0.00019178,2]
[347664639,1736039450897,-1642.77,0.00019178,2]
[347664640,1736039450907,-1618.59,0.00019178,2]
[347664641,1736039450919,-601.01,0.00019178,2]
[347664642,1736039450929,-1618.59,0.00019178,2]
[347664643,1736039450938,-1618.59,0.00019178,2]
[347664644,1736039450948,-1618.59,0.00019178,2]
[347664645,1736039450958,-1416.66,0.00019178,2]
[347664646,1736039450968,-1618.59,0.00019178,2]
[347664647,1736039450978,-500.0,0.00019178,2]
[347664648,1736039450988,-1618.59,0.00019178,2]
[347664649,1736039450998,-1618.59,0.00019178,2]
[347664650,1736039451008,-1618.59,0.00019178,2]
[347664651,1736039451018,-1618.59,0.00019178,2]
[347664652,1736039451028,-1618.59,0.00019178,2]
[347664653,1736039451037,-500.0,0.00019178,2]
[347664654,1736039451047,-1618.59,0.00019178,2]
[347664655,1736039451057,-1618.59,0.00019178,2]
[347664656,1736039451067,-1618.59,0.00019178,2]
[347664657,1736039451078,-1618.59,0.00019178,2]
[347664658,1736039451088,-1618.59,0.00019178,2]
[347664659,1736039451098,-1618.59,0.00019178,3]
[347664660,1736039451107,-500.0,0.00019178,2]
[347664661,1736039451117,-2183.93,0.00019178,2]
[347664662,1736039451127,-500.0,0.00019178,2]
[347664663,1736039451136,-500.0,0.00019178,2]
[347664664,1736039451146,-500.0,0.00019178,2]
[347664665,1736039451156,-500.0,0.00019178,2]
[347664666,1736039451167,-500.0,0.00019178,2]
[347664667,1736039451176,-280.77760564,0.00019178,2]
[347664668,1736039451186,-500.0,0.00019178,2]
[347664669,1736039451196,-1115.06,0.00019178,2]
[347664670,1736039451206,-500.0,0.00019178,2]
[347664671,1736039451215,-7736.34,0.00019178,2]
[347664672,1736039451225,-500.0,0.00019178,2]
[347664673,1736039451235,-500.0,0.00019178,2]
[347664674,1736039451244,-500.0,0.00019178,2]
[347664675,1736039451254,-1875.29,0.00019178,2]
[347664676,1736039451263,-402.325971,0.00019178,2]
[347664677,1736039451274,-402.325971,0.00019178,2]
[347664678,1736039451284,-402.325971,0.00019178,2]
[347664679,1736039451293,-501.46235216,0.00019178,2]
[347664680,1736039451303,-402.325971,0.00019178,2]
[347664681,1736039451312,-402.325971,0.00019178,2]
[347664682,1736039451322,-402.325971,0.00019178,2]
[347664683,1736039451331,-500.0,0.00019178,2]
[347664684,1736039451341,-402.325971,0.00019178,2]
[347664685,1736039451350,-500.0,0.00019178,2]
[347664686,1736039451359,-402.325971,0.00019178,2]
[347664687,1736039451369,-402.325971,0.00019178,2]
[347664688,1736039451379,-500.0,0.00019178,2]
[347664689,1736039451388,-502.08,0.00019178,2]
[347664690,1736039451398,-402.325971,0.00019178,2]
[347664691,1736039451407,-402.325971,0.00019178,2]
[347664692,1736039451419,-402.325971,0.00019178,2]
[347664693,1736039451428,-402.325971,0.00019178,2]
[347664694,1736039451438,-500.0,0.00019178,2]
[347664695,1736039451448,-402.325971,0.00019178,2]
[347664696,1736039451458,-402.325971,0.00019178,2]
[347664697,1736039451467,-402.325971,0.00019178,2]
[347664698,1736039451477,-402.325971,0.00019178,2]
[347664699,1736039451486,-402.325971,0.00019178,2]
[347664700,1736039451496,-500.0,0.00019178,2]
[347664701,1736039451505,-500.0,0.00019178,2]
[347664702,1736039451515,-501.80392648,0.00019178,2]
[347664703,1736039451525,-500.0,0.00019178,2]
[347664704,1736039451535,-500.0,0.00019178,2]
[347664705,1736039451544,-500.0,0.00019178,2]
[347664706,1736039451554,-151.0,0.00019178,2]
[347664707,1736039451564,-153.840585,0.00019178,2]
[347664708,1736039451573,-600.07,0.00019178,2]
[347664709,1736039451583,-500.0,0.00019178,2]
[347664710,1736039451593,-500.0,0.00019178,2]
[347664711,1736039451603,-500.0,0.00019178,2]
[347664712,1736039451613,-500.0,0.00019178,2]
[347664713,1736039451623,-500.0,0.00019178,2]
[347664714,1736039451633,-500.0,0.00019178,2]
[347664715,1736039451642,-500.0,0.00019178,2]
[347664716,1736039451652,-500.0,0.00019178,2]
[347664717,1736039451664,-500.0,0.00019178,2]
[347664718,1736039451673,-551.92103526,0.00019178,2]
[347664719,1736039451683,-500.0,0.00019178,2]
[347664720,1736039451692,-500.0,0.00019178,2]
[347664721,1736039451702,-319.04036244,0.00019178,2]
[347664722,1736039451711,-1416.5,0.00019178,2]
[347664723,1736039451721,-500.0,0.00019178,2]
[347664724,1736039451730,-500.0,0.00019178,2]
[347664725,1736039451740,-852.25,0.00019178,2]
[347664726,1736039451749,-500.0,0.00019178,2]
[347664727,1736039451759,-578.53219428,0.00019178,2]
[347664728,1736039451768,-511.91,0.00019178,2]
[347664729,1736039451778,-500.0,0.00019178,2]
[347664730,1736039451787,-500.0,0.00019178,2]
[347664731,1736039451797,-1465.52,0.00019178,2]
[347664732,1736039451806,-500.0,0.00019178,2]
[347664733,1736039451815,-1179.6,0.00019178,2]
[347664734,1736039451825,-3581.34,0.00019178,2]
[347664735,1736039451834,-500.0,0.00019178,2]
[347664736,1736039451844,-228.93834509,0.00019178,2]
[347664737,1736039451853,-500.0,0.00019178,2]
[347664738,1736039451863,-726.62,0.00019178,2]
[347664739,1736039451872,-500.0,0.00019178,2]
[347664740,1736039451881,-814.36,0.00019178,2]
[347664741,1736039451891,-500.0,0.00019178,2]
[347664742,1736039451900,-166.967225,0.00019178,2]
[347664743,1736039451909,-907.92553538,0.00019198,2]
[347664744,1736039451921,-582.55,0.000192,2]
[347664745,1736039451931,-151.0,0.000192,2]
[347664746,1736039451940,-151.0,0.000192,2]
[347664747,1736039451949,-166.444872,0.000192,3]
[347664748,1736039451958,-210.7762039,0.00019257,2]
[347664749,1736039451968,-503.0,0.0001926,2]
[347664750,1736039451977,-151.0,0.00019285,2]
[347664751,1736039451987,-607.136654,0.00019285,2]
[347664752,1736039451996,-607.136654,0.00019285,2]
[347664753,1736039452006,-794.425828,0.00019285,2]
[347664754,1736039452015,-151.0,0.00019285,2]
[347664755,1736039452024,-794.425828,0.00019285,2]
[347664756,1736039452033,-279.395617,0.00019285,2]
[347664757,1736039452042,-279.395617,0.00019285,2]
[347664758,1736039452052,-296.074826,0.00019285,2]
[347664759,1736039452061,-296.074826,0.00019285,2]
[347664760,1736039452070,-2935.482554,0.00019285,2]
[347664761,1736039452080,-2935.482554,0.00019285,2]
[347664762,1736039452091,-252.644046,0.00019285,2]
[347664763,1736039452100,-252.644046,0.00019285,2]
[347664764,1736039452109,-1335.496854,0.00019285,2]
[347664765,1736039452118,-1335.496854,0.00019285,2]
[347664766,1736039452128,-151.0,0.000193,2]
[347664767,1736039452137,-151.0,0.000193,2]
[347664768,1736039452146,-151.0,0.000193,2]
[347664769,1736039452155,-151.0,0.000193,2]
[347664770,1736039452165,-151.0,0.000193,2]
[347664771,1736039452175,-151.0,0.000193,2]
[347664772,1736039452184,-618.0,0.000193,2]
[347664773,1736039452194,-7460.37127823,0.0001931,2]
[347664774,1736039452203,-3175.93520529,0.00019314,2]
[347664775,1736039452213,-1040.630848,0.0001935,2]
[347664776,1736039452224,-1040.630848,0.0001935,2]
[347664777,1736039452234,-679.76,0.00019351,3]
[347664778,1736039452243,-577.78168798,0.00019351,3]
[347664779,1736039452252,-2345.42133465,0.00019352,2]
[347664780,1736039452261,-195.1,0.00019377,2]
[347664781,1736039452271,-679.76,0.00019399,3]
[347664782,1736039452281,-679.76,0.00019399,3]
[347664783,1736039452290,-1618.59,0.00019399,3]
[347664784,1736039452300,-1618.59,0.00019399,3]
[347664785,1736039452309,-1618.59,0.00019399,3]
[347664786,1736039452319,-50000.0,0.000194,5]
[347664787,1736039452328,-162.421265,0.000194,2]
[347664788,1736039452338,-201.00909,0.000194,2]
[347664789,1736039452347,-201.00909,0.000194,2]
[347664790,1736039452357,-194.825448,0.000194,2]
[347664791,1736039452367,-151.0,0.000194,2]
[347664792,1736039452377,-151.0,0.000194,2]
[347664793,1736039452386,-194.825448,0.000194,2]
[347664794,1736039452395,-151.0,0.000194,2]
[347664795,1736039452405,-151.0,0.000194,2]
[347664796,1736039452414,-227.39081,0.000194,2]
[347664797,1736039452423,-831.830151,0.000194,2]
[347664798,1736039452433,-831.830151,0.000194,2]
[347664799,1736039452442,-151.0,0.000194,2]
[347664800,1736039452452,-436.121569,0.000194,2]
[347664801,1736039452462,-436.121569,0.000194,2]
[347664802,1736039452471,-1641.530038,0.000194,2]
[347664803,1736039452481,-1641.530038,0.000194,2]
[347664804,1736039452491,-1120.362219,0.000194,2]
[347664805,1736039452501,-1120.362219,0.000194,2]
[347664806,1736039452510,-693.724464,0.000194,2]
[347664807,1736039452520,-693.724464,0.000194,2]
[347664808,1736039452530,-151.0,0.000194,2]
[347664809,1736039452539,-151.0,0.000194,2]
[347664810,1736039452549,-607.136654,0.000194,2]
[347664811,1736039452559,-607.136654,0.000194,2]
[347664812,1736039452569,-607.136654,0.000194,2]
[347664813,1736039452578,-607.136654,0.000194,2]
[347664814,1736039452589,-794.425828,0.000194,2]
[347664815,1736039452599,-794.425828,0.000194,2]
[347664816,1736039452609,-151.0,0.000194,2]
[347664817,1736039452619,-794.425828,0.000194,2]
[347664818,1736039452629,-794.425828,0.000194,2]
[347664819,1736039452639,-279.395617,0.000194,2]
[347664820,1736039452649,-279.395617,0.000194,2]
[347664821,1736039452658,-279.395617,0.000194,2]
[347664822,1736039452669,-279.395617,0.000194,2]
[347664823,1736039452679,-296.074826,0.000194,2]
[347664824,1736039452690,-296.074826,0.000194,2]
[347664825,1736039452699,-296.074826,0.000194,2]
[347664826,1736039452836,-296.074826,0.000194,2]
[347664827,1736039452847,-2935.482554,0.000194,2]
[347664828,1736039452857,-2935.482554,0.000194,2]
[347664829,1736039452867,-2935.482554,0.000194,2]
[347664830,1736039452876,-2935.482554,0.000194,2]
[347664831,1736039452887,-1040.630848,0.000194,2]
[347664832,1736039452896,-1040.630848,0.000194,2]
[347664833,1736039452906,-252.644046,0.000194,2]
[347664834,1736039452916,-252.644046,0.000194,2]
[347664835,1736039452926,-252.644046,0.000194,2]
[347664836,1736039452935,-252.644046,0.000194,2]
[347664837,1736039452945,-151.0,0.000194,2]
[347664838,1736039452955,-151.0,0.000194,2]
[347664839,1736039452964,-151.0,0.000194,2]
[347664840,1736039452973,-1869.515813,0.000194,2]
[347664841,1736039452983,-1869.51580907,0.000194,2]
[347664842,1736039452993,-1335.496854,0.000194,2]
[347664843,1736039453002,-1335.496854,0.000194,2]
[347664844,1736039453012,-1335.496854,0.000194,2]
[347664845,1736039453021,-1335.496854,0.000194,2]
[347664846,1736039453031,-402.325971,0.000194,2]
[347664847,1736039453040,-402.325972,0.000194,2]
[347664848,1736039453050,-195.0,0.00019422,2]
[347664849,1736039453059,-180.0,0.0001945,2]
[347664850,1736039453068,-180.0,0.0001945,3]
[347664851,1736039453078,-180.0,0.0001945,4]
[347664852,1736039453087,-198.0,0.0001945,5]
[347664853,1736039453097,-302.0,0.00019451,2]
[347664854,1736039453107,-679.76,0.00019451,3]
[347664855,1736039453116,-679.76,0.00019451,3]
[347664856,1736039453127,-679.76,0.00019451,3]
[347664857,1736039453136,-679.76,0.00019451,3]
[347664858,1736039453146,-679.76,0.00019451,3]
[347664859,1736039453155,-679.76,0.00019451,3]
[347664860,1736039453167,-679.76,0.00019451,3]
[347664861,1736039453176,-679.76,0.00019451,3]
[347664862,1736039453186,-679.96305678,0.00019451,3]
[347664863,1736039453197,-360.99204703,0.00019451,3]
[347664864,1736039453366,-437.15690907,0.00019451,3]
[347664865,1736039453583,-152.0,0.00019176,2]
[347664866,1736039453594,-820.4410439,0.00019451,3]
[347664867,1736039453603,-1618.59,0.00019451,3]
[347664868,1736039453612,-1618.59,0.00019451,3]
[347664869,1736039453622,-1618.59,0.00019451,3]
[347664870,1736039453631,-1618.70299271,0.00019451,3]
[347664871,1736039453641,-3175.93520529,0.00019452,2]
[347664872,1736039453650,-151.0,0.00019452,2]
[347664873,1736039453659,-151.0,0.00019452,2]
[347664874,1736039453671,-151.0,0.00019452,2]
[347664875,1736039453680,-151.0,0.00019452,2]
[347664876,1736039453690,-228.936992,0.00019452,2]
[347664877,1736039453700,-151.0,0.00019452,2]
[347664878,1736039453709,-151.0,0.00019452,2]
[347664879,1736039453718,-151.0,0.00019452,2]
[347664880,1736039453728,-151.0,0.00019452,2]
[347664881,1736039453737,-151.0,0.00019452,2]
[347664882,1736039453747,-151.0,0.00019452,2]
[347664883,1736039453756,-151.0,0.00019452,2]
[347664884,1736039453766,-222.455322,0.00019452,2]
[347664885,1736039453775,-178.995078,0.00019452,2]
[347664886,1736039453784,-178.995078,0.00019452,2]
[347664887,1736039453793,-178.995078,0.00019452,2]
[347664888,1736039453803,-178.995078,0.00019452,2]
[347664889,1736039453812,-178.995078,0.00019452,2]
[347664890,1736039453822,-178.995078,0.00019452,2]
[347664891,1736039453832,-178.995078,0.00019452,2]
[347664892,1736039453842,-178.995078,0.00019452,2]
[347664893,1736039453852,-178.995078,0.00019452,2]
[347664894,1736039453862,-178.995078,0.00019452,2]
[347664895,1736039453872,-178.995078,0.00019452,2]
[347664896,1736039453881,-178.995078,0.00019452,2]
[347664897,1736039453891,-151.0,0.00019452,2]
[347664898,1736039453900,-151.0,0.00019452,2]
[347664899,1736039453910,-151.0,0.00019452,2]
[347664900,1736039453920,-151.0,0.00019452,2]
[347664901,1736039453929,-151.0,0.00019452,2]
[347664902,1736039453939,-151.0,0.00019452,2]
[347664903,1736039453948,-154.450676,0.00019452,2]
[347664904,1736039453958,-154.450676,0.00019452,2]
[347664905,1736039453969,-154.450676,0.00019452,2]
[347664906,1736039453980,-154.450676,0.00019452,2]
[347664907,1736039453990,-154.450676,0.00019452,2]
[347664908,1736039454000,-154.450676,0.00019452,2]
[347664909,1736039454009,-154.450676,0.00019452,2]
[347664910,1736039454018,-154.450676,0.00019452,2]
[347664911,1736039454029,-500.0,0.00019452,3]
[347664912,1736039454038,-500.0,0.00019452,3]
[347664913,1736039454047,-569.748929,0.00019452,2]
[347664914,1736039454057,-569.748929,0.00019452,2]
[347664915,1736039454066,-569.748929,0.00019452,2]
[347664916,1736039454076,-500.0,0.00019452,3]
[347664917,1736039454085,-569.748929,0.00019452,2]
[347664918,1736039454094,-500.0,0.00019452,3]
[347664919,1736039454103,-569.748929,0.00019452,2]
[347664920,1736039454113,-569.748929,0.00019452,2]
[347664921,1736039454122,-500.0,0.00019452,3]
[347664922,1736039454131,-500.0,0.00019452,3]
[347664923,1736039454140,-500.0,0.00019452,3]
[347664924,1736039454150,-500.0,0.00019452,2]
[347664925,1736039454159,-500.0,0.00019452,3]
[347664926,1736039454168,-500.0,0.00019452,3]
[347664927,1736039454178,-201.00909,0.00019452,2]
[347664928,1736039454187,-201.00909,0.00019452,2]
[347664929,1736039454196,-201.00909,0.00019452,2]
[347664930,1736039454206,-201.00909,0.00019452,2]
[347664931,1736039454215,-201.00909,0.00019452,2]
[347664932,1736039454225,-201.00909,0.00019452,2]
[347664933,1736039454234,-201.00909,0.00019452,2]
[347664934,1736039454243,-201.00909,0.00019452,2]
[347664935,1736039454253,-201.00909,0.00019452,2]
[347664936,1736039454262,-500.0,0.00019452,3]
[347664937,1736039454271,-201.00909,0.00019452,2]
[347664938,1736039454280,-201.00909,0.00019452,2]
[347664939,1736039454290,-201.00909,0.00019452,2]
[347664940,1736039454299,-500.0,0.00019452,3]
[347664941,1736039454309,-570.04417982,0.00019452,3]
[347664942,1736039454318,-669.3,0.00019452,3]
[347664943,1736039454327,-500.0,0.00019452,3]
[347664944,1736039454337,-194.825448,0.00019452,2]
[347664945,1736039454346,-194.825448,0.00019452,2]
[347664946,1736039454355,-194.825448,0.00019452,2]
[347664947,1736039454365,-194.825448,0.00019452,2]
[347664948,1736039454374,-194.825448,0.00019452,2]
[347664949,1736039454383,-194.825448,0.00019452,2]
[347664950,1736039454392,-151.0,0.00019452,2]
[347664951,1736039454402,-151.0,0.00019452,2]
[347664952,1736039454411,-151.0,0.00019452,2]
[347664953,1736039454421,-151.0,0.00019452,2]
[347664954,1736039454430,-151.0,0.00019452,2]
[347664955,1736039454439,-151.0,0.00019452,2]
[347664956,1736039454449,-151.0,0.00019452,2]
[347664957,1736039454458,-194.825448,0.00019452,2]
[347664958,1736039454467,-194.825448,0.00019452,2]
[347664959,1736039454476,-151.0,0.00019452,2]
[347664960,1736039454486,-216.960549,0.00019452,2]
[347664961,1736039454496,-194.825448,0.00019452,2]
[347664962,1736039454506,-194.825448,0.00019452,2]
[347664963,1736039454515,-194.825448,0.00019452,2]
[347664964,1736039454524,-194.825448,0.00019452,2]
[347664965,1736039454533,-151.0,0.00019452,2]
[347664966,1736039454543,-151.0,0.00019452,2]
[347664967,1736039454552,-297.412884,0.00019452,2]
[347664968,1736039454562,-151.0,0.00019452,2]
[347664969,1736039454571,-242.58702,0.00019452,2]
[347664970,1736039454580,-227.39081,0.00019452,2]
[347664971,1736039454590,-227.39081,0.00019452,2]
[347664972,1736039454599,-227.39081,0.00019452,2]
[347664973,1736039454608,-227.39081,0.00019452,2]
[347664974,1736039454618,-227.39081,0.00019452,2]
[347664975,1736039454627,-227.39081,0.00019452,2]
[347664976,1736039454636,-500.0,0.00019452,2]
[347664977,1736039454645,-500.0,0.00019452,3]
[347664978,1736039454655,-500.0,0.00019452,3]
[347664979,1736039454665,-500.0,0.00019452,3]
[347664980,1736039454674,-701.52,0.00019452,3]
[347664981,1736039454683,-704.12,0.00019452,3]
[347664982,1736039454692,-831.830151,0.00019452,2]
[347664983,1736039454702,-831.830151,0.00019452,2]
[347664984,1736039454711,-831.830151,0.00019452,2]
[347664985,1736039454720,-831.830151,0.00019452,2]
[347664986,1736039454729,-831.830151,0.00019452,2]
[347664987,1736039454738,-831.830151,0.00019452,2]
[347664988,1736039454748,-831.830151,0.00019452,2]
[347664989,1736039454757,-831.830151,0.00019452,2]
[347664990,1736039454767,-831.830151,0.00019452,2]
[347664991,1736039454776,-831.830151,0.00019452,2]
[347664992,1736039454785,-831.830151,0.00019452,2]
[347664993,1736039454795,-831.830151,0.00019452,2]
[347664994,1736039454805,-500.0,0.00019452,3]
[347664995,1736039454815,-500.0,0.00019452,3]
[347664996,1736039454824,-500.0,0.00019452,3]
[347664997,1736039454834,-500.0,0.00019452,3]
[347664998,1736039454843,-500.0,0.00019452,3]
[347664999,1736039454852,-500.0,0.00019452,3]
[347665000,1736039454861,-500.0,0.00019452,2]
[347665001,1736039454871,-669.35,0.00019452,3]
[347665002,1736039454880,-500.0,0.00019452,3]
[347665003,1736039454889,-500.0,0.00019452,3]
[347665004,1736039454899,-436.121569,0.00019452,2]
[347665005,1736039454908,-436.121569,0.00019452,2]
[347665006,1736039454918,-436.121569,0.00019452,2]
[347665007,1736039454928,-436.121569,0.00019452,2]
[347665008,1736039454936,-436.121569,0.00019452,2]
[347665009,1736039454946,-436.121569,0.00019452,2]
[347665010,1736039454955,-436.121569,0.00019452,2]
[347665011,1736039454964,-436.121569,0.00019452,2]
[347665012,1736039454974,-436.121569,0.00019452,2]
[347665013,1736039454983,-436.121575,0.00019452,2]
[347665014,1736039454992,-205.18773444,0.00019452,3]
[347665015,1736039455002,-500.0,0.00019452,3]
[347665016,1736039455011,-500.0,0.00019452,3]
[347665017,1736039455020,-575.87,0.00019452,3]
[347665018,1736039455030,-500.0,0.00019452,3]
[347665019,1736039455039,-829.32,0.00019452,3]
[347665020,1736039455048,-500.0,0.00019452,3]
[347665021,1736039455057,-500.0,0.00019452,3]
[347665022,1736039455067,-557.64,0.00019452,3]
[347665023,1736039455076,-1641.530038,0.00019452,2]
[347665024,1736039455085,-1641.530038,0.00019452,2]
[347665025,1736039455094,-500.0,0.00019452,3]
[347665026,1736039455104,-1641.530038,0.00019452,2]
[347665027,1736039455113,-1641.530038,0.00019452,2]
[347665028,1736039455122,-1641.530038,0.00019452,2]
[347665029,1736039455131,-500.0,0.00019452,3]
[347665030,1736039455140,-1641.530038,0.00019452,2]
[347665031,1736039455150,-1641.530038,0.00019452,2]
[347665032,1736039455159,-1641.530038,0.00019452,2]
[347665033,1736039455169,-1641.530038,0.00019452,2]
[347665034,1736039455179,-1641.530028,0.00019452,2]
[347665035,1736039455187,-1142.6,0.00019452,3]
[347665036,1736039455198,-150.18,0.00019452,2]
[347665037,1736039455208,-1120.362219,0.00019452,2]
[347665038,1736039455218,-1120.362219,0.00019452,2]
[347665039,1736039455228,-1120.362219,0.00019452,2]
[347665040,1736039455237,-1120.362219,0.00019452,2]
[347665041,1736039455247,-1120.362219,0.00019452,2]
[347665042,1736039455257,-1068.97,0.00019452,3]
[347665043,1736039455266,-200.0,0.00019452,3]
[347665044,1736039455275,-1120.362219,0.00019452,2]
[347665045,1736039455284,-1120.362219,0.00019452,2]
[347665046,1736039455294,-1120.362219,0.00019452,2]
[347665047,1736039455304,-1120.362219,0.00019452,2]
[347665048,1736039455313,-1120.362212,0.00019452,2]
[347665049,1736039455322,-500.0,0.00019452,3]
[347665050,1736039455331,-500.0,0.00019452,3]
[347665051,1736039455341,-706.11,0.00019452,3]
[347665052,1736039455351,-654.24,0.00019452,3]
[347665053,1736039455360,-620.79,0.00019452,3]
[347665054,1736039455369,-988.84,0.00019452,3]
[347665055,1736039455379,-693.724464,0.00019452,2]
[347665056,1736039455388,-693.724464,0.00019452,2]
[347665057,1736039455397,-693.724464,0.00019452,2]
[347665058,1736039455407,-693.724464,0.00019452,2]
[347665059,1736039455417,-693.724464,0.00019452,2]
[347665060,1736039455426,-654.11,0.00019452,3]
[347665061,1736039455435,-549.01,0.00019452,3]
[347665062,1736039455447,-693.724464,0.00019452,2]
[347665063,1736039455456,-693.724464,0.00019452,2]
[347665064,1736039455466,-693.724464,0.00019452,2]
[347665065,1736039455475,-500.0,0.00019452,3]
[347665066,1736039455484,-693.724464,0.00019452,2]
[347665067,1736039455494,-693.724471,0.00019452,2]
[347665068,1736039455503,-783.45,0.00019452,3]
[347665069,1736039455513,-500.0,0.00019452,3]
[347665070,1736039455522,-500.0,0.00019452,3]
[347665071,1736039455531,-500.0,0.00019452,3]
[347665072,1736039455541,-500.0,0.00019452,3]
[347665073,1736039455550,-334.7362487,0.00019452,3]
[347665074,1736039455560,-500.0,0.00019452,3]
[347665075,1736039455569,-500.0,0.00019452,3]
[347665076,1736039455578,-680.3,0.00019452,3]
[347665077,1736039455587,-500.0,0.00019452,3]
[347665078,1736039455596,-718.76,0.00019452,3]
[347665079,1736039455606,-1040.55,0.00019452,3]
[347665080,1736039455615,-151.0,0.00019452,2]
[347665081,1736039455625,-263.779566,0.00019452,2]
[347665082,1736039455634,-607.136654,0.00019452,2]
[347665083,1736039455644,-607.136654,0.00019452,2]
[347665084,1736039455653,-607.136654,0.00019452,2]
[347665085,1736039455662,-500.0,0.00019452,3]
[347665086,1736039455673,-607.136654,0.00019452,2]
[347665087,1736039455682,-607.136654,0.00019452,2]
[347665088,1736039455692,-607.136653,0.00019452,2]
[347665089,1736039455701,-500.0,0.00019452,3]
[347665090,1736039455711,-367.62,0.00019452,3]
[347665091,1736039455720,-500.0,0.00019452,3]
[347665092,1736039455862,-794.425828,0.00019452,2]
[347665093,1736039455873,-794.425828,0.00019452,2]
[347665094,1736039455883,-794.425828,0.00019452,2]
[347665095,1736039455893,-500.0,0.00019452,3]
[347665096,1736039455902,-794.425828,0.00019452,2]
[347665097,1736039455912,-500.0,0.00019452,3]
[347665098,1736039455923,-794.425828,0.00019452,2]
[347665099,1736039455932,-794.425822,0.00019452,2]
[347665100,1736039455942,-616.73,0.00019452,3]
[347665101,1736039455952,-279.395617,0.00019452,2]
[347665102,1736039455961,-985.8,0.00019452,3]
[347665103,1736039455970,-279.395617,0.00019452,2]
[347665104,1736039455980,-279.395617,0.00019452,2]
[347665105,1736039455990,-279.395617,0.00019452,2]
[347665106,1736039456000,-279.395617,0.00019452,2]
[347665107,1736039456010,-279.395621,0.00019452,2]
[347665108,1736039456019,-500.0,0.00019452,3]
[347665109,1736039456029,-500.0,0.00019452,3]
[347665110,1736039456038,-500.0,0.00019452,3]
[347665111,1736039456048,-500.0,0.00019452,3]
[347665112,1736039456063,-296.074826,0.00019452,2]
[347665113,1736039456072,-296.074826,0.00019452,2]
[347665114,1736039456082,-296.074826,0.00019452,2]
[347665115,1736039456091,-500.0,0.00019452,3]
[347665116,1736039456100,-296.074826,0.00019452,2]
[347665117,1736039456110,-296.074826,0.00019452,2]
[347665118,1736039456119,-296.074819,0.00019452,2]
[347665119,1736039456129,-500.0,0.00019452,3]
[347665120,1736039456138,-2935.482554,0.00019452,2]
[347665121,1736039456147,-2935.482554,0.00019452,2]
[347665122,1736039456157,-2935.482554,0.00019452,2]
[347665123,1736039456167,-2935.482554,0.00019452,2]
[347665124,1736039456177,-2935.482554,0.00019452,2]
[347665125,1736039456187,-2935.48256326,0.00019452,2]
[347665126,1736039456197,-500.0,0.00019452,3]
[347665127,1736039456207,-1040.630848,0.00019452,2]
[347665128,1736039456217,-1040.630848,0.00019452,2]
[347665129,1736039456226,-500.0,0.00019452,3]
[347665130,1736039456236,-500.0,0.00019452,2]
[347665131,1736039456245,-500.0,0.00019452,3]
[347665132,1736039456254,-1040.630848,0.00019452,2]
[347665133,1736039456264,-1156.69,0.00019452,3]
[347665134,1736039456273,-1040.630848,0.00019452,2]